[Event "Gibraltar Masters 18th"]
[Site "Gibraltar"]
[Date "2020.01.22"]
[Round "2.23"]
[White "Karthikeyan, Murali"]
[Black "Horvath, Dominik"]
[Result "1-0"]
[ECO "C93"]
[WhiteElo "2606"]
[BlackElo "2449"]
[PlyCount "135"]
[EventDate "2020.01.21"]
[EventType "swiss"]
[EventRounds "10"]
[EventCountry "GGB"]
[SourceTitle "BritBase"]
[Source "John Saunders"]
[SourceDate "2021.06.05"]
[SourceVersion "1"]
[SourceVersionDate "2021.06.05"]
[SourceQuality "1"]
[TimeControl "40/100:0"]
[WhiteClock "0:25:37"]
[BlackClock "0:20:15"]

1. e4 {[%emt 0:00:00]} e5 {[%emt 0:00:00]} 2. Nf3 {[%emt 0:00:00]} Nc6 {
[%emt 0:00:00]} 3. Bb5 {[%emt 0:00:00]} a6 {[%emt 0:00:00]} 4. Ba4 {[%emt 0:00:
00]} Nf6 {[%emt 0:00:00]} 5. O-O {[%emt 0:00:00]} Be7 {[%emt 0:00:00]} 6. Re1 {
[%emt 0:00:00]} b5 {[%emt 0:00:00]} 7. Bb3 {[%emt 0:00:00]} O-O {[%emt 0:00:00]
} 8. c3 {[%emt 0:00:00]} d6 {[%emt 0:00:00]} 9. h3 {[%emt 0:00:00]} Re8 {
[%emt 0:00:00]} 10. d4 {[%emt 0:00:00]} Bb7 {[%emt 0:00:00]} 11. Nbd2 {[%emt 0:
00:00]} Bf8 {[%emt 0:00:00]} 12. a3 {[%emt 0:00:00]} h6 {[%emt 0:00:00]} 13.
Ba2 {[%emt 0:00:00]} Nb8 {[%emt 0:00:00]} 14. Qb3 {[%emt 0:00:00]} Qd7 {
[%emt 0:00:00]} 15. Qc2 {[%emt 0:00:00]} c5 {[%emt 0:00:00]} 16. d5 {[%emt 0:
00:00]} c4 {[%emt 0:00:00]} 17. a4 {[%emt 0:00:00]} Qc7 {[%emt 0:00:00]} 18.
Nb1 {[%emt 0:00:00]} Nbd7 {[%emt 0:00:00]} 19. Na3 {[%emt 0:00:00]} Qa5 {
[%emt 0:00:00]} 20. Be3 {[%emt 0:00:00]} Rec8 {[%emt 0:00:00]} 21. Nd2 {
[%emt 0:00:00]} Be7 {[%emt 0:00:00]} 22. Rec1 {[%emt 0:00:00]} Bd8 {[%emt 0:00:
00]} 23. b4 {[%emt 0:00:00]} cxb3 {[%emt 0:00:00]} 24. Bxb3 {[%emt 0:00:00]}
Nc5 {[%emt 0:00:00]} 25. Ra2 {[%emt 0:00:00]} Nfd7 {[%emt 0:00:00]} 26. Qb1 {
[%emt 0:00:00]} Bg5 {[%emt 0:00:00]} 27. Bxg5 {[%emt 0:00:00]} hxg5 {[%emt 0:
00:00]} 28. Bd1 {[%emt 0:00:00]} Rcb8 {[%emt 0:00:00]} 29. axb5 {[%emt 0:00:00]
} axb5 {[%emt 0:00:00]} 30. Be2 {[%emt 0:00:00]} Nf6 {[%emt 0:00:00]} 31. Ra1 {
[%emt 0:00:00]} Bc8 {[%emt 0:00:00]} 32. Nxb5 {[%emt 0:00:00]} Qxa1 {[%emt 0:
00:00]} 33. Qxa1 {[%emt 0:00:00]} Rxa1 {[%emt 0:00:00]} 34. Rxa1 {[%emt 0:00:
00]} Ba6 {[%emt 0:00:00]} 35. f3 {[%emt 0:00:00]} Bxb5 {[%emt 0:00:00]} 36. Rb1
{[%emt 0:00:00]} Na4 {[%emt 0:00:00]} 37. Rxb5 {[%emt 0:00:00]} Rxb5 {[%emt 0:
00:00]} 38. Bxb5 {[%emt 0:00:00]} Nxc3 {[%emt 0:00:00]} 39. Bc6 {[%emt 0:00:00]
} Kf8 {[%emt 0:00:00]} 40. Kf2 {[%emt 0:00:00]} Na2 {[%emt 0:00:00]} 41. Nc4 {
[%emt 0:00:00]} Ke7 {[%emt 0:00:00]} 42. Ne3 {[%emt 0:00:00]} g6 {[%emt 0:00:
00]} 43. Nc2 {[%emt 0:00:00]} Nh5 {[%emt 0:00:00]} 44. Ke3 {[%emt 0:00:00]} Nf4
{[%emt 0:00:00]} 45. Kd2 {[%emt 0:00:00]} Nxg2 {[%emt 0:00:00]} 46. Bb5 {
[%emt 0:00:00]} Nf4 {[%emt 0:00:00]} 47. Bc4 {[%emt 0:00:00]} Nxh3 {[%emt 0:00:
00]} 48. Bxa2 {[%emt 0:00:00]} g4 {[%emt 0:00:00]} 49. fxg4 {[%emt 0:00:00]}
Nf2 {[%emt 0:00:00]} 50. Ke3 {[%emt 0:00:00]} Nxg4+ {[%emt 0:00:00]} 51. Kf3 {
[%emt 0:00:00]} f5 {[%emt 0:00:00]} 52. Ne3 {[%emt 0:00:00]} Nxe3 {[%emt 0:00:
00]} 53. Kxe3 {[%emt 0:00:00]} f4+ {[%emt 0:00:00]} 54. Kf3 {[%emt 0:00:00]}
Kd7 {[%emt 0:00:00]} 55. Bc4 {[%emt 0:00:00]} Kc7 {[%emt 0:00:00]} 56. Bb5 {
[%emt 0:00:00]} Kb6 {[%emt 0:00:00]} 57. Be8 {[%emt 0:00:00]} Kc5 {[%emt 0:00:
00]} 58. Bxg6 {[%emt 0:00:00]} Kd4 {[%emt 0:00:00]} 59. Bf5 {[%emt 0:00:00]}
Kd3 {[%emt 0:00:00]} 60. Bh3 {[%emt 0:00:00]} Kd2 {[%emt 0:00:00]} 61. Kf2 {
[%emt 0:00:00]} Kd3 {[%emt 0:00:00]} 62. Bg2 {[%emt 0:00:00]} Kd2 {[%emt 0:00:
00]} 63. Bh1 {[%emt 0:00:00]} Kd1 {[%emt 0:00:00]} 64. Kf3 {[%emt 0:00:00]} Kd2
{[%emt 0:00:00]} 65. Kg4 {[%emt 0:00:00]} Ke3 {[%emt 0:00:00]} 66. Kf5 {
[%emt 0:00:00]} f3 {[%emt 0:00:00]} 67. Ke6 {[%emt 0:00:00]} Kxe4 {[%emt 0:00:
00]} 68. Kxd6 {[%emt 0:00:00]} 1-0

[Event "Gibraltar Masters 18th"]
[Site "Gibraltar"]
[Date "2020.01.22"]
[Round "2.24"]
[White "Real De Azua, Ernesto"]
[Black "Basso, Pier Luigi"]
[Result "0-1"]
[ECO "A09"]
[WhiteElo "2456"]
[BlackElo "2600"]
[PlyCount "66"]
[EventDate "2020.01.21"]
[EventType "swiss"]
[EventRounds "10"]
[EventCountry "GGB"]
[SourceTitle "BritBase"]
[Source "John Saunders"]
[SourceDate "2021.06.05"]
[SourceVersion "1"]
[SourceVersionDate "2021.06.05"]
[SourceQuality "1"]
[TimeControl "40/100:0"]
[WhiteClock "0:01:22"]
[BlackClock "0:02:36"]

1. Nf3 {[%emt 0:00:00]} d5 {[%emt 0:00:00]} 2. c4 {[%emt 0:00:00]} d4 {[%emt 0:
00:00]} 3. b4 {[%emt 0:00:00]} f6 {[%emt 0:00:00]} 4. Na3 {[%emt 0:00:00]} e5 {
[%emt 0:00:00]} 5. Nc2 {[%emt 0:00:00]} Na6 {[%emt 0:00:00]} 6. Rb1 {[%emt 0:
00:00]} Ne7 {[%emt 0:00:00]} 7. d3 {[%emt 0:00:00]} c6 {[%emt 0:00:00]} 8. g3 {
[%emt 0:00:00]} Nc7 {[%emt 0:00:00]} 9. Bg2 {[%emt 0:00:00]} a5 {[%emt 0:00:00]
} 10. a3 {[%emt 0:00:00]} axb4 {[%emt 0:00:00]} 11. axb4 {[%emt 0:00:00]} Nf5 {
[%emt 0:00:00]} 12. O-O {[%emt 0:00:00]} Be7 {[%emt 0:00:00]} 13. Bb2 {[%emt 0:
00:00]} O-O {[%emt 0:00:00]} 14. Nd2 {[%emt 0:00:00]} Be6 {[%emt 0:00:00]} 15.
Nb3 {[%emt 0:00:00]} Qd7 {[%emt 0:00:00]} 16. Na5 {[%emt 0:00:00]} Rab8 {
[%emt 0:00:00]} 17. Qd2 {[%emt 0:00:00]} Nd6 {[%emt 0:00:00]} 18. Rfc1 {
[%emt 0:00:00]} Bh3 {[%emt 0:00:00]} 19. Bh1 {[%emt 0:00:00]} Ne6 {[%emt 0:00:
00]} 20. e3 {[%emt 0:00:00]} dxe3 {[%emt 0:00:00]} 21. Nxe3 {[%emt 0:00:00]}
Nf5 {[%emt 0:00:00]} 22. b5 {[%emt 0:00:00]} cxb5 {[%emt 0:00:00]} 23. Nd5 {
[%emt 0:00:00]} bxc4 {[%emt 0:00:00]} 24. dxc4 {[%emt 0:00:00]} Rfd8 {[%emt 0:
00:00]} 25. Nb3 {[%emt 0:00:00]} Bf8 {[%emt 0:00:00]} 26. Bc3 {[%emt 0:00:00]}
Qf7 {[%emt 0:00:00]} 27. Qe2 {[%emt 0:00:00]} b6 {[%emt 0:00:00]} 28. Ra1 {
[%emt 0:00:00]} Bc5 {[%emt 0:00:00]} 29. Nxc5 {[%emt 0:00:00]} bxc5 {[%emt 0:
00:00]} 30. Ra6 {[%emt 0:00:00]} Nfd4 {[%emt 0:00:00]} 31. Qd1 {[%emt 0:00:00]}
Kh8 {[%emt 0:00:00]} 32. Rca1 {[%emt 0:00:07]} h6 {[%emt 0:00:00]} 33. Ra7 {
[%emt 0:00:11]} Qxa7 {[%emt 0:00:00]} 0-1

[Event "Gibraltar Masters 18th"]
[Site "Gibraltar"]
[Date "2020.01.22"]
[Round "2.25"]
[White "Paveto, Kevin"]
[Black "Moussard, Jules"]
[Result "0-1"]
[ECO "B58"]
[WhiteElo "2452"]
[BlackElo "2600"]
[PlyCount "72"]
[EventDate "2020.01.21"]
[EventType "swiss"]
[EventRounds "10"]
[EventCountry "GGB"]
[SourceTitle "BritBase"]
[Source "John Saunders"]
[SourceDate "2021.06.05"]
[SourceVersion "1"]
[SourceVersionDate "2021.06.05"]
[SourceQuality "1"]
[TimeControl "40/100:0"]
[WhiteClock "0:01:08"]
[BlackClock "0:10:39"]

1. e4 {[%emt 0:00:00]} c5 {[%emt 0:00:00]} 2. Nf3 {[%emt 0:00:00]} d6 {[%emt 0:
00:00]} 3. d4 {[%emt 0:00:00]} cxd4 {[%emt 0:00:00]} 4. Nxd4 {[%emt 0:00:00]}
Nf6 {[%emt 0:00:00]} 5. Nc3 {[%emt 0:00:00]} Bd7 {[%emt 0:00:00]} 6. Be2 {
[%emt 0:00:00]} Nc6 {[%emt 0:00:00]} 7. Be3 {[%emt 0:00:00]} e5 {[%emt 0:00:00]
} 8. Ndb5 {[%emt 0:00:00]} Be6 {[%emt 0:00:00]} 9. Nd5 {[%emt 0:00:00]} Bxd5 {
[%emt 0:00:00]} 10. exd5 {[%emt 0:00:00]} Ne7 {[%emt 0:00:00]} 11. c4 {[%emt 0:
00:00]} a6 {[%emt 0:00:00]} 12. Nc3 {[%emt 0:00:00]} Nf5 {[%emt 0:00:00]} 13.
Qa4+ {[%emt 0:00:00]} Nd7 {[%emt 0:00:00]} 14. O-O {[%emt 0:00:00]} Nxe3 {
[%emt 0:00:00]} 15. fxe3 {[%emt 0:00:00]} g6 {[%emt 0:00:00]} 16. Bg4 {[%emt 0:
00:00]} f5 {[%emt 0:00:00]} 17. Bh3 {[%emt 0:00:00]} e4 {[%emt 0:00:00]} 18.
Nxe4 {[%emt 0:00:00]} fxe4 {[%emt 0:00:00]} 19. c5 {[%emt 0:00:00]} Qc7 {
[%emt 0:00:00]} 20. Qxe4+ {[%emt 0:00:51]} Ne5 {[%emt 0:00:00]} 21. Rac1 {
[%emt 0:00:00]} Bg7 {[%emt 0:00:00]} 22. Qa4+ {[%emt 0:00:10]} Kd8 {[%emt 0:00:
00]} 23. Qa3 {[%emt 0:00:05]} Bf8 {[%emt 0:00:00]} 24. cxd6 {[%emt 0:00:00]}
Qxd6 {[%emt 0:00:00]} 25. Rxf8+ {[%emt 0:00:00]} Qxf8 {[%emt 0:00:00]} 26. d6 {
[%emt 0:00:00]} Qf6 {[%emt 0:00:00]} 27. Qc5 {[%emt 0:00:00]} Ke8 {[%emt 0:00:
00]} 28. Rf1 {[%emt 0:00:00]} Qg7 {[%emt 0:00:00]} 29. Rf4 {[%emt 0:00:00]} Rf8
{[%emt 0:00:00]} 30. Re4 {[%emt 0:00:00]} Qf6 {[%emt 0:00:00]} 31. Rxe5+ {
[%emt 0:00:00]} Kf7 {[%emt 0:00:00]} 32. Qd5+ {[%emt 0:00:02]} Kg7 {[%emt 0:00:
00]} 33. Re7+ {[%emt 0:00:00]} Kh6 {[%emt 0:00:00]} 34. Qf3 {[%emt 0:00:00]}
Qxd6 {[%emt 0:00:00]} 35. Rf7 {[%emt 0:00:00]} Rxf7 {[%emt 0:00:00]} 36. Qxf7 {
[%emt 0:00:00]} Rf8 {[%emt 0:00:00]} 0-1

[Event "Gibraltar Masters 18th"]
[Site "Gibraltar"]
[Date "2020.01.22"]
[Round "2.26"]
[White "Vaibhav, Suri"]
[Black "Bulmaga, Irina"]
[Result "1-0"]
[ECO "C54"]
[WhiteElo "2593"]
[BlackElo "2446"]
[PlyCount "53"]
[EventDate "2020.01.21"]
[EventType "swiss"]
[EventRounds "10"]
[EventCountry "GGB"]
[SourceTitle "BritBase"]
[Source "John Saunders"]
[SourceDate "2021.06.05"]
[SourceVersion "1"]
[SourceVersionDate "2021.06.05"]
[SourceQuality "1"]
[TimeControl "40/100:0"]
[WhiteClock "0:10:11"]
[BlackClock "0:00:35"]

1. e4 {[%emt 0:00:00]} e5 {[%emt 0:00:00]} 2. Nf3 {[%emt 0:00:00]} Nc6 {
[%emt 0:00:00]} 3. Bc4 {[%emt 0:00:00]} Bc5 {[%emt 0:00:00]} 4. c3 {[%emt 0:00:
00]} Nf6 {[%emt 0:00:00]} 5. d3 {[%emt 0:00:00]} d6 {[%emt 0:00:00]} 6. Bg5 {
[%emt 0:00:00]} h6 {[%emt 0:00:00]} 7. Bh4 {[%emt 0:00:00]} Bg4 {[%emt 0:00:00]
} 8. h3 {[%emt 0:00:00]} Be6 {[%emt 0:00:00]} 9. Nbd2 {[%emt 0:00:00]} a5 {
[%emt 0:00:00]} 10. Bb5 {[%emt 0:00:00]} Bd7 {[%emt 0:00:00]} 11. O-O {[%emt 0:
00:00]} g5 {[%emt 0:00:00]} 12. Bg3 {[%emt 0:00:00]} Nh5 {[%emt 0:00:00]} 13.
Bh2 {[%emt 0:00:00]} Nf4 {[%emt 0:00:00]} 14. d4 {[%emt 0:00:00]} Ba7 {[%emt 0:
00:00]} 15. Bxc6 {[%emt 0:00:00]} bxc6 {[%emt 0:00:00]} 16. dxe5 {[%emt 0:00:
00]} d5 {[%emt 0:00:00]} 17. Nd4 {[%emt 0:00:00]} Bxd4 {[%emt 0:00:00]} 18.
cxd4 {[%emt 0:00:00]} Ne6 {[%emt 0:00:00]} 19. Nb1 {[%emt 0:00:00]} a4 {
[%emt 0:01:02]} 20. Nc3 {[%emt 0:00:00]} Ra5 {[%emt 0:00:00]} 21. Qd2 {[%emt 0:
00:00]} Qa8 {[%emt 0:00:00]} 22. f4 {[%emt 0:00:00]} gxf4 {[%emt 0:00:00]} 23.
Bxf4 {[%emt 0:00:00]} h5 {[%emt 0:00:00]} 24. Bg5 {[%emt 0:00:00]} Rg8 {
[%emt 0:00:00]} 25. Bh4 {[%emt 0:00:00]} Qa7 {[%emt 0:00:00]} 26. Rad1 {
[%emt 0:00:00]} Nf8 {[%emt 0:00:03]} 27. Qf4 {[%emt 0:00:00]} 1-0

[Event "Gibraltar Masters 18th"]
[Site "Gibraltar"]
[Date "2020.01.22"]
[Round "2.27"]
[White "Atalik, Ekaterina"]
[Black "Kryakvin, Dmitry"]
[Result "1/2-1/2"]
[ECO "D19"]
[WhiteElo "2450"]
[BlackElo "2592"]
[PlyCount "115"]
[EventDate "2020.01.21"]
[EventType "swiss"]
[EventRounds "10"]
[EventCountry "GGB"]
[SourceTitle "BritBase"]
[Source "John Saunders"]
[SourceDate "2021.06.05"]
[SourceVersion "1"]
[SourceVersionDate "2021.06.05"]
[SourceQuality "1"]
[TimeControl "40/100:0"]
[WhiteClock "0:07:30"]
[BlackClock "0:30:17"]

1. d4 {[%emt 0:00:00]} d5 {[%emt 0:00:00]} 2. c4 {[%emt 0:00:00]} c6 {[%emt 0:
00:00]} 3. Nc3 {[%emt 0:00:00]} Nf6 {[%emt 0:00:00]} 4. Nf3 {[%emt 0:00:00]}
dxc4 {[%emt 0:00:00]} 5. a4 {[%emt 0:00:00]} Bf5 {[%emt 0:00:00]} 6. e3 {
[%emt 0:00:00]} e6 {[%emt 0:00:00]} 7. Bxc4 {[%emt 0:00:00]} Bb4 {[%emt 0:00:
00]} 8. O-O {[%emt 0:00:00]} Nbd7 {[%emt 0:00:00]} 9. Qe2 {[%emt 0:00:00]} Bg6
{[%emt 0:00:00]} 10. Rd1 {[%emt 0:00:00]} O-O {[%emt 0:00:00]} 11. Ne5 {
[%emt 0:00:00]} Nxe5 {[%emt 0:00:00]} 12. dxe5 {[%emt 0:00:00]} Nd7 {[%emt 0:
00:00]} 13. f4 {[%emt 0:00:00]} Qe7 {[%emt 0:00:00]} 14. Na2 {[%emt 0:00:00]}
Nb6 {[%emt 0:00:00]} 15. b3 {[%emt 0:00:00]} Nxc4 {[%emt 0:00:00]} 16. Qxc4 {
[%emt 0:00:00]} Bc5 {[%emt 0:00:00]} 17. b4 {[%emt 0:00:00]} Rad8 {[%emt 0:00:
00]} 18. Re1 {[%emt 0:00:00]} Bb6 {[%emt 0:00:00]} 19. a5 {[%emt 0:00:00]} Bc7
{[%emt 0:00:00]} 20. Bb2 {[%emt 0:00:00]} Bd3 {[%emt 0:00:00]} 21. Qb3 {
[%emt 0:00:00]} b6 {[%emt 0:00:00]} 22. Bd4 {[%emt 0:00:00]} Be4 {[%emt 0:00:
00]} 23. Nc3 {[%emt 0:00:00]} Bd5 {[%emt 0:00:00]} 24. Nxd5 {[%emt 0:00:00]}
Rxd5 {[%emt 0:00:00]} 25. Rec1 {[%emt 0:00:00]} Qd7 {[%emt 0:00:00]} 26. Qc4 {
[%emt 0:00:00]} bxa5 {[%emt 0:00:00]} 27. Qxc6 {[%emt 0:00:00]} Bb6 {[%emt 0:
00:00]} 28. Qxd7 {[%emt 0:00:00]} Rxd7 {[%emt 0:00:00]} 29. Bxb6 {[%emt 0:00:
00]} axb6 {[%emt 0:00:00]} 30. bxa5 {[%emt 0:00:00]} bxa5 {[%emt 0:00:00]} 31.
Rxa5 {[%emt 0:00:00]} Rd2 {[%emt 0:00:00]} 32. Rac5 {[%emt 0:00:00]} h5 {
[%emt 0:00:00]} 33. R1c2 {[%emt 0:00:00]} Rfd8 {[%emt 0:00:00]} 34. Kf1 {
[%emt 0:00:00]} R8d3 {[%emt 0:00:00]} 35. Rxd2 {[%emt 0:00:00]} Rxd2 {[%emt 0:
00:00]} 36. Rc1 {[%emt 0:00:00]} g6 {[%emt 0:00:00]} 37. Re1 {[%emt 0:00:00]}
Kg7 {[%emt 0:00:00]} 38. Re2 {[%emt 0:00:00]} Rd3 {[%emt 0:00:00]} 39. Kf2 {
[%emt 0:00:00]} Ra3 {[%emt 0:00:00]} 40. Rb2 {[%emt 0:00:00]} Rc3 {[%emt 0:00:
00]} 41. h3 {[%emt 0:00:00]} Ra3 {[%emt 0:00:00]} 42. Kf3 {[%emt 0:00:00]} Rc3
{[%emt 0:00:00]} 43. g4 {[%emt 0:00:00]} hxg4+ {[%emt 0:00:00]} 44. hxg4 {
[%emt 0:00:00]} Ra3 {[%emt 0:00:00]} 45. Rb7 {[%emt 0:00:00]} Ra5 {[%emt 0:00:
00]} 46. Rd7 {[%emt 0:00:00]} Rb5 {[%emt 0:00:00]} 47. Ke4 {[%emt 0:00:00]} Rb1
{[%emt 0:00:00]} 48. f5 {[%emt 0:00:00]} gxf5+ {[%emt 0:00:00]} 49. gxf5 {
[%emt 0:00:00]} exf5+ {[%emt 0:00:00]} 50. Kxf5 {[%emt 0:00:00]} Rf1+ {[%emt 0:
00:00]} 51. Ke4 {[%emt 0:00:00]} Kf8 {[%emt 0:00:00]} 52. Ra7 {[%emt 0:00:00]}
Ke8 {[%emt 0:00:00]} 53. e6 {[%emt 0:00:00]} fxe6 {[%emt 0:00:00]} 54. Ke5 {
[%emt 0:00:00]} Re1 {[%emt 0:00:00]} 55. e4 {[%emt 0:00:00]} Re2 {[%emt 0:00:
00]} 56. Ra6 {[%emt 0:00:00]} Kf7 {[%emt 0:00:00]} 57. Ra7+ {[%emt 0:00:00]}
Ke8 {[%emt 0:00:00]} 58. Kxe6 {[%emt 0:00:35]} 1/2-1/2

[Event "Gibraltar Masters 18th"]
[Site "Gibraltar"]
[Date "2020.01.22"]
[Round "2.28"]
[White "Khotenashvili, Bela"]
[Black "Kadric, Denis"]
[Result "0-1"]
[ECO "E61"]
[WhiteElo "2446"]
[BlackElo "2585"]
[PlyCount "106"]
[EventDate "2020.01.21"]
[EventType "swiss"]
[EventRounds "10"]
[EventCountry "GGB"]
[SourceTitle "BritBase"]
[Source "John Saunders"]
[SourceDate "2021.06.05"]
[SourceVersion "1"]
[SourceVersionDate "2021.06.05"]
[SourceQuality "1"]
[TimeControl "40/100:0"]
[WhiteClock "0:30:54"]
[BlackClock "0:42:45"]

1. d4 {[%emt 0:00:00]} d6 {[%emt 0:00:00]} 2. Nf3 {[%emt 0:00:00]} Nf6 {
[%emt 0:00:00]} 3. c4 {[%emt 0:00:00]} g6 {[%emt 0:00:00]} 4. Nc3 {[%emt 0:00:
00]} Bf5 {[%emt 0:00:00]} 5. Nh4 {[%emt 0:00:00]} Bd7 {[%emt 0:00:00]} 6. e4 {
[%emt 0:00:00]} Bg7 {[%emt 0:00:00]} 7. h3 {[%emt 0:00:00]} e5 {[%emt 0:00:00]}
8. Nf3 {[%emt 0:00:00]} exd4 {[%emt 0:00:00]} 9. Nxd4 {[%emt 0:00:00]} Nxe4 {
[%emt 0:00:00]} 10. Nxe4 {[%emt 0:00:00]} Qe7 {[%emt 0:00:00]} 11. Qe2 {
[%emt 0:00:00]} Bxd4 {[%emt 0:00:00]} 12. Bg5 {[%emt 0:00:00]} Qe6 {[%emt 0:00:
00]} 13. O-O-O {[%emt 0:00:00]} Bg7 {[%emt 0:00:00]} 14. Re1 {[%emt 0:00:00]}
O-O {[%emt 0:00:00]} 15. Qd2 {[%emt 0:00:00]} Nc6 {[%emt 0:00:00]} 16. Nf6+ {
[%emt 0:00:00]} Bxf6 {[%emt 0:00:00]} 17. Rxe6 {[%emt 0:00:00]} Bxg5 {[%emt 0:
00:00]} 18. Qxg5 {[%emt 0:00:00]} fxe6 {[%emt 0:00:00]} 19. f3 {[%emt 0:00:00]}
Rf5 {[%emt 0:00:00]} 20. Qd2 {[%emt 0:00:00]} Ne5 {[%emt 0:00:00]} 21. Kb1 {
[%emt 0:00:00]} Raf8 {[%emt 0:00:00]} 22. h4 {[%emt 0:00:00]} b6 {[%emt 0:00:
00]} 23. Be2 {[%emt 0:00:00]} Rf4 {[%emt 0:00:00]} 24. Qc3 {[%emt 0:00:00]} Bc6
{[%emt 0:00:00]} 25. a3 {[%emt 0:00:00]} a5 {[%emt 0:00:00]} 26. c5 {[%emt 0:
00:00]} bxc5 {[%emt 0:00:00]} 27. Qxa5 {[%emt 0:00:00]} R4f7 {[%emt 0:00:00]}
28. h5 {[%emt 0:00:00]} Rb8 {[%emt 0:00:00]} 29. hxg6 {[%emt 0:00:00]} Nxg6 {
[%emt 0:00:00]} 30. Qd2 {[%emt 0:00:00]} Bd5 {[%emt 0:00:00]} 31. Qg5 {[%emt 0:
00:00]} Rg7 {[%emt 0:00:00]} 32. Qc1 {[%emt 0:00:00]} Ne5 {[%emt 0:00:00]} 33.
Rh2 {[%emt 0:00:00]} c4 {[%emt 0:00:00]} 34. f4 {[%emt 0:00:00]} Nd3 {[%emt 0:
00:00]} 35. Bxd3 {[%emt 0:00:00]} cxd3 {[%emt 0:00:00]} 36. Qe3 {[%emt 0:00:00]
} Rb3 {[%emt 0:00:00]} 37. f5 {[%emt 0:00:00]} e5 {[%emt 0:00:00]} 38. f6 {
[%emt 0:00:00]} Rg6 {[%emt 0:00:00]} 39. g3 {[%emt 0:00:57]} c5 {[%emt 0:00:00]
} 40. Rf2 {[%emt 0:00:04]} Kf7 {[%emt 0:00:00]} 41. Kc1 {[%emt 0:00:00]} Rxg3 {
[%emt 0:00:00]} 42. Qe1 {[%emt 0:00:00]} Rh3 {[%emt 0:00:00]} 43. Rf1 {[%emt 0:
00:00]} Rh2 {[%emt 0:00:00]} 44. Rf2 {[%emt 0:00:00]} Rh1 {[%emt 0:00:00]} 45.
Rf1 {[%emt 0:00:00]} d2+ {[%emt 0:00:00]} 46. Kxd2 {[%emt 0:00:00]} Rh2+ {
[%emt 0:00:00]} 47. Kc1 {[%emt 0:00:00]} Rhxb2 {[%emt 0:00:00]} 48. Qh4 {
[%emt 0:00:00]} Rb1+ {[%emt 0:00:00]} 49. Kc2 {[%emt 0:00:00]} Rxf1 {[%emt 0:
00:00]} 50. Qxh7+ {[%emt 0:00:00]} Kxf6 {[%emt 0:00:00]} 51. Qh4+ {[%emt 0:00:
00]} Ke6 {[%emt 0:00:00]} 52. Qh7 {[%emt 0:00:00]} Rf2+ {[%emt 0:00:00]} 53.
Kd1 {[%emt 0:00:00]} Rb1+ {[%emt 0:00:00]} 0-1

[Event "Gibraltar Masters 18th"]
[Site "Gibraltar"]
[Date "2020.01.22"]
[Round "2.29"]
[White "Xu, Xiangyu"]
[Black "Ladron De Guevara Pinto, Paolo"]
[Result "1/2-1/2"]
[ECO "D37"]
[WhiteElo "2580"]
[BlackElo "2445"]
[PlyCount "76"]
[EventDate "2020.01.21"]
[EventType "swiss"]
[EventRounds "10"]
[EventCountry "GGB"]
[SourceTitle "BritBase"]
[Source "John Saunders"]
[SourceDate "2021.06.05"]
[SourceVersion "1"]
[SourceVersionDate "2021.06.05"]
[SourceQuality "1"]
[TimeControl "40/100:0"]
[WhiteClock "0:27:03"]
[BlackClock "0:08:53"]

1. d4 {[%emt 0:00:00]} d5 {[%emt 0:00:00]} 2. c4 {[%emt 0:00:00]} e6 {[%emt 0:
00:00]} 3. Nc3 {[%emt 0:00:00]} Nf6 {[%emt 0:00:00]} 4. Nf3 {[%emt 0:00:00]}
Be7 {[%emt 0:00:00]} 5. Bf4 {[%emt 0:00:00]} O-O {[%emt 0:00:00]} 6. a3 {
[%emt 0:00:00]} c5 {[%emt 0:00:00]} 7. dxc5 {[%emt 0:00:00]} Bxc5 {[%emt 0:00:
00]} 8. cxd5 {[%emt 0:00:00]} Nxd5 {[%emt 0:00:00]} 9. Nxd5 {[%emt 0:00:00]}
exd5 {[%emt 0:00:00]} 10. Rc1 {[%emt 0:00:00]} Bb6 {[%emt 0:00:00]} 11. e3 {
[%emt 0:00:00]} Nc6 {[%emt 0:00:00]} 12. Bg5 {[%emt 0:00:00]} Qd6 {[%emt 0:00:
00]} 13. Be2 {[%emt 0:00:00]} d4 {[%emt 0:00:00]} 14. O-O {[%emt 0:00:00]} Qg6
{[%emt 0:00:00]} 15. Bd3 {[%emt 0:00:00]} Bf5 {[%emt 0:00:00]} 16. Bxf5 {
[%emt 0:00:00]} Qxf5 {[%emt 0:00:00]} 17. exd4 {[%emt 0:00:00]} Nxd4 {[%emt 0:
00:00]} 18. Be3 {[%emt 0:00:00]} Nxf3+ {[%emt 0:00:00]} 19. Qxf3 {[%emt 0:00:
00]} Qxf3 {[%emt 0:00:00]} 20. gxf3 {[%emt 0:00:00]} Bxe3 {[%emt 0:00:00]} 21.
fxe3 {[%emt 0:00:00]} Rac8 {[%emt 0:00:00]} 22. Rfd1 {[%emt 0:00:00]} f5 {
[%emt 0:00:00]} 23. Kf2 {[%emt 0:00:00]} Rxc1 {[%emt 0:00:00]} 24. Rxc1 {
[%emt 0:00:00]} Rd8 {[%emt 0:00:00]} 25. Kg3 {[%emt 0:00:00]} Rd7 {[%emt 0:00:
00]} 26. Kf4 {[%emt 0:00:00]} g6 {[%emt 0:00:00]} 27. e4 {[%emt 0:00:00]} fxe4
{[%emt 0:00:00]} 28. fxe4 {[%emt 0:00:00]} Re7 {[%emt 0:00:00]} 29. b4 {
[%emt 0:00:00]} Kf7 {[%emt 0:00:00]} 30. b5 {[%emt 0:00:00]} Kf6 {[%emt 0:00:
00]} 31. a4 {[%emt 0:00:00]} g5+ {[%emt 0:00:00]} 32. Ke3 {[%emt 0:00:00]} Rd7
{[%emt 0:00:00]} 33. Rf1+ {[%emt 0:00:00]} Ke6 {[%emt 0:00:00]} 34. Rf5 {
[%emt 0:00:00]} h6 {[%emt 0:00:00]} 35. Rc5 {[%emt 0:00:00]} Rd1 {[%emt 0:00:
00]} 36. Rc7 {[%emt 0:00:00]} Ra1 {[%emt 0:00:00]} 37. Rxb7 {[%emt 0:00:00]}
Rxa4 {[%emt 0:00:00]} 38. b6 {[%emt 0:00:00]} axb6 {[%emt 0:00:00]} 1/2-1/2